fUSD/lending_fUSD_20260115
["ID","MTS","AMOUNT","RATE_DAILY","PERIOD"]
[402038224,1768488697771,-521.3,0.00041643,30]
[402038225,1768488697791,-500.0,0.00041643,30]
[402038226,1768488697801,-500.0,0.00041643,30]
[402038227,1768488697815,-2361.46,0.00041643,30]
[402038228,1768488697825,-500.0,0.00041643,30]
[402038229,1768488697835,-599.56,0.00041643,30]
[402038230,1768488697845,-500.0,0.00041643,30]
[402038231,1768488697855,-500.0,0.00041643,30]
[402038232,1768488697865,-940.09,0.00041643,30]
[402038233,1768488697875,-1372.94,0.00041643,30]
[402038234,1768488697886,-500.0,0.00041643,30]
[402038235,1768488697896,-514.92,0.00041643,30]
[402038236,1768488697905,-500.0,0.00041643,30]
[402038237,1768488697915,-989.28,0.00041643,30]
[402038238,1768488697925,-1862.32,0.00041643,30]
[402038239,1768488697935,-500.0,0.00041643,30]
[402038240,1768488697945,-3323.94,0.00041643,30]
[402038241,1768488697955,-666.99,0.00041643,30]
[402038242,1768488697964,-561.64,0.00041643,30]
[402038243,1768488697974,-500.0,0.00041643,30]
[402038244,1768488697984,-1018.11,0.00041643,30]
[402038245,1768488697994,-500.0,0.00041643,30]
[402038246,1768488698003,-1085.76,0.00041643,30]
[402038247,1768488698013,-45117.35458243,0.00041643,2]
[402038248,1768488698024,-1834.0,0.00041644,120]
[402038249,1768488698034,-592.0,0.00041644,2]
[402038250,1768488698043,-3582.31987,0.0004166,120]
[402038251,1768488698053,-150.0,0.00041671,60]
[402038252,1768488698063,-1834.0,0.00041699,120]
[402038253,1768488698074,-592.0,0.00041699,2]
[402038254,1768488698084,-703.23983326,0.000417,120]
[402038255,1768488698095,-2000.0,0.00041707,3]
[402038256,1768488698106,-200.63565743,0.00041726,60]
[402038257,1768488698116,-1834.0,0.00041753,120]
[402038258,1768488698126,-592.0,0.00041754,2]
[402038259,1768488698137,-3582.31987,0.0004176,120]
[402038260,1768488698148,-227.87,0.000418,120]
[402038261,1768488698158,-454.7,0.000418,120]
[402038262,1768488698168,-1834.0,0.00041808,120]
[402038263,1768488698178,-592.0,0.00041808,2]
[402038264,1768488698192,-834.0,0.00041835,11]
[402038265,1768488698201,-3582.31987,0.0004186,120]
[402038266,1768488698211,-1834.0,0.00041863,120]
[402038267,1768488698221,-592.0,0.00041863,2]
[402038268,1768488698230,-834.0,0.00041879,11]
[402038269,1768488698241,-1531.7938987,0.00041885,120]
[402038270,1768488698250,-1881.64536084,0.000419,120]
[402038271,1768488698260,-2048.45128608,0.000419,120]
[402038272,1768488698269,-2215.87336611,0.00041914,120]
[402038273,1768488698278,-300.151608,0.00041914,108]
[402038274,1768488698288,-300.0,0.00041916,30]
[402038275,1768488698297,-208.739998,0.00041917,30]
[402038276,1768488698307,-247.184164,0.00041917,30]
[402038277,1768488698317,-150.978527,0.00041917,30]
[402038278,1768488698326,-500.0,0.00041917,30]
[402038279,1768488698336,-500.0,0.00041917,30]
[402038280,1768488698346,-517.97839245,0.00041917,30]
[402038281,1768488698356,-894.22,0.00041917,30]
[402038282,1768488698366,-500.0,0.00041917,30]
[402038283,1768488698379,-500.0,0.00041917,30]
[402038284,1768488698390,-749.93,0.00041917,30]
[402038285,1768488698400,-500.0,0.00041917,30]
[402038286,1768488698409,-500.0,0.00041917,30]
[402038287,1768488698419,-500.0,0.00041917,30]
[402038288,1768488698429,-970.08,0.00041917,30]
[402038289,1768488698439,-500.0,0.00041917,30]
[402038290,1768488698449,-1373.88,0.00041917,30]
[402038291,1768488698459,-500.0,0.00041917,30]
[402038292,1768488698469,-501.51104003,0.00041917,30]
[402038293,1768488698479,-500.0,0.00041917,30]
[402038294,1768488698489,-500.0,0.00041917,30]
[402038295,1768488698499,-1671.33,0.00041917,30]
[402038296,1768488698510,-500.0,0.00041917,30]
[402038297,1768488698876,-643.11,0.00041917,30]
[402038298,1768488698889,-1325.74,0.00041917,30]
[402038299,1768488698898,-186.88102597,0.00041917,30]
[402038300,1768488698907,-500.0,0.00041917,30]
[402038301,1768488698917,-539.86,0.00041917,30]
[402038302,1768488698926,-500.0,0.00041917,30]
[402038303,1768488698937,-533.46,0.00041917,30]
[402038304,1768488698947,-1463.85,0.00041917,30]
[402038305,1768488698956,-825.4,0.00041917,30]
[402038306,1768488698965,-500.0,0.00041917,30]
[402038307,1768488698975,-500.0,0.00041917,30]
[402038308,1768488698984,-500.0,0.00041917,30]
[402038309,1768488698994,-500.0,0.00041917,30]
[402038310,1768488699004,-540.69976928,0.00041917,30]
[402038311,1768488699014,-500.0,0.00041917,30]
[402038312,1768488699023,-500.0,0.00041917,30]
[402038313,1768488699033,-500.0,0.00041917,30]
[402038314,1768488699042,-867.71,0.00041917,30]
[402038315,1768488699051,-622.2,0.00041917,30]
[402038316,1768488699061,-500.0,0.00041917,30]
[402038317,1768488699071,-500.0,0.00041917,30]
[402038318,1768488699080,-1123.08,0.00041917,30]
[402038319,1768488699090,-500.0,0.00041917,30]
[402038320,1768488699099,-500.0,0.00041917,30]
[402038321,1768488699109,-500.0,0.00041917,30]
[402038322,1768488699121,-1447.59,0.00041917,30]
[402038323,1768488699130,-500.0,0.00041917,30]
[402038324,1768488699140,-500.0,0.00041917,30]
[402038325,1768488699149,-500.0,0.00041917,30]
[402038326,1768488699158,-500.0,0.00041917,30]
[402038327,1768488699168,-500.0,0.00041917,30]
[402038328,1768488699177,-750.12,0.00041917,30]
[402038329,1768488699187,-500.0,0.00041917,30]
[402038330,1768488699197,-500.0,0.00041917,30]
[402038331,1768488699208,-500.0,0.00041917,30]
[402038332,1768488699217,-500.0,0.00041917,30]
[402038333,1768488699227,-502.63141503,0.00041917,30]
[402038334,1768488699236,-500.0,0.00041917,30]
[402038335,1768488699246,-1382.8,0.00041917,30]
[402038336,1768488699255,-500.0,0.00041917,30]
[402038337,1768488699264,-885.85,0.00041917,30]
[402038338,1768488699275,-500.0,0.00041917,30]
[402038339,1768488699285,-500.0,0.00041917,30]
[402038340,1768488699295,-1451.28,0.00041917,30]
[402038341,1768488699305,-500.0,0.00041917,30]
[402038342,1768488699317,-500.0,0.00041917,30]
[402038343,1768488699327,-526.26,0.00041917,30]
[402038344,1768488699336,-500.0,0.00041917,30]
[402038345,1768488699345,-500.0,0.00041917,30]
[402038346,1768488699354,-200.0,0.00041917,30]
[402038347,1768488699363,-500.0,0.00041917,30]
[402038348,1768488699373,-557.76384228,0.00041917,30]
[402038349,1768488699383,-500.0,0.00041917,30]
[402038350,1768488699392,-500.0,0.00041917,30]
[402038351,1768488699401,-534.84,0.00041917,30]
[402038352,1768488699410,-529.94,0.00041917,30]
[402038353,1768488699420,-1566.62,0.00041917,30]
[402038354,1768488699429,-500.0,0.00041917,30]
[402038355,1768488699438,-939.47,0.00041917,30]
[402038356,1768488699447,-500.0,0.00041917,30]
[402038357,1768488699456,-500.0,0.00041917,30]
[402038358,1768488699466,-500.0,0.00041917,12]
[402038359,1768488699475,-500.0,0.00041917,30]
[402038360,1768488699484,-706.27,0.00041917,30]
[402038361,1768488699493,-539.6,0.00041917,30]
[402038362,1768488699504,-500.0,0.00041917,30]
[402038363,1768488699514,-692.96,0.00041917,30]
[402038364,1768488699523,-500.0,0.00041917,30]
[402038365,1768488699532,-500.0,0.00041917,30]
[402038366,1768488699542,-500.0,0.00041917,30]
[402038367,1768488699551,-500.0,0.00041917,30]
[402038368,1768488699561,-1555.79,0.00041917,30]
[402038369,1768488699570,-1013.61,0.00041917,30]
[402038370,1768488699580,-500.0,0.00041917,30]
[402038371,1768488699591,-761.83,0.00041917,30]
[402038372,1768488699601,-500.92458058,0.00041917,30]
[402038373,1768488699610,-500.0,0.00041917,30]
[402038374,1768488699623,-500.0,0.00041917,30]
[402038375,1768488699633,-1108.22,0.00041917,30]
[402038376,1768488699642,-500.0,0.00041917,30]
[402038377,1768488699651,-500.0,0.00041917,30]
[402038378,1768488699660,-500.0,0.00041917,30]
[402038379,1768488699670,-500.0,0.00041917,30]
[402038380,1768488699681,-500.0,0.00041917,30]
[402038381,1768488699692,-500.0,0.00041917,30]
[402038382,1768488699703,-500.0,0.00041917,120]
[402038383,1768488699711,-500.0,0.00041917,30]
[402038384,1768488699720,-998.52,0.00041917,30]
[402038385,1768488699729,-500.0,0.00041917,30]
[402038386,1768488699738,-641.91,0.00041917,30]
[402038387,1768488699747,-500.0,0.00041917,30]
[402038388,1768488699757,-643.38,0.00041917,30]
[402038389,1768488699766,-500.0,0.00041917,30]
[402038390,1768488699776,-500.0,0.00041917,30]
[402038391,1768488699785,-1011.79,0.00041917,30]
[402038392,1768488699794,-1172.0,0.00041917,30]
[402038393,1768488699804,-500.0,0.00041917,30]
[402038394,1768488699813,-577.5,0.00041917,30]
[402038395,1768488699823,-500.0,0.00041917,30]
[402038396,1768488699832,-500.0,0.00041917,30]
[402038397,1768488699842,-500.0,0.00041917,30]
[402038398,1768488699851,-500.0,0.00041917,30]
[402038399,1768488699860,-500.0,0.00041917,30]
[402038400,1768488699872,-835.55,0.00041917,30]
[402038401,1768488699882,-500.0,0.00041917,30]
[402038402,1768488699891,-500.0,0.00041917,30]
[402038403,1768488699900,-500.0,0.00041917,30]
[402038404,1768488699915,-500.0,0.00041917,30]
[402038405,1768488699935,-500.0,0.00041917,30]
[402038406,1768488699948,-500.0,0.00041917,30]
[402038407,1768488699957,-500.0,0.00041917,30]
[402038408,1768488699967,-505.44833573,0.00041917,30]
[402038409,1768488699976,-500.0,0.00041917,30]
[402038410,1768488699986,-875.25,0.00041917,30]
[402038411,1768488699996,-500.0,0.00041917,30]
[402038412,1768488700006,-671.97,0.00041917,30]
[402038413,1768488700015,-804.29,0.00041917,30]
[402038414,1768488700024,-500.0,0.00041917,30]
[402038415,1768488700033,-500.0,0.00041917,30]
[402038416,1768488700042,-520.38769703,0.00041917,30]
[402038417,1768488700051,-500.0,0.00041917,30]
[402038418,1768488700061,-430.39632021,0.00041917,30]
[402038419,1768488700070,-500.0,0.00041917,30]
[402038420,1768488700080,-500.0,0.00041917,30]
[402038421,1768488700089,-500.0,0.00041917,30]
[402038422,1768488700098,-525.18,0.00041917,30]
[402038423,1768488700108,-1234.19,0.00041917,30]
[402038424,1768488700119,-500.0,0.00041917,30]
[402038425,1768488700128,-500.0,0.00041917,30]
[402038426,1768488700137,-500.0,0.00041917,30]
[402038427,1768488700146,-500.0,0.00041917,30]
[402038428,1768488700155,-500.0,0.00041917,30]
[402038429,1768488700164,-500.0,0.00041917,30]
[402038430,1768488700173,-701.45,0.00041917,30]
[402038431,1768488700182,-500.0,0.00041917,30]
[402038432,1768488700191,-579.16,0.00041917,30]
[402038433,1768488700200,-500.0,0.00041917,30]
[402038434,1768488700209,-500.0,0.00041917,30]
[402038435,1768488700218,-586.06859672,0.00041917,30]
[402038436,1768488700228,-500.0,0.00041917,30]
[402038437,1768488700237,-1435.95,0.00041917,30]
[402038438,1768488700246,-500.0,0.00041917,30]
[402038439,1768488700255,-1861.42,0.00041917,30]
[402038440,1768488700264,-500.0,0.00041917,30]
[402038441,1768488700274,-500.0,0.00041917,30]
[402038442,1768488700283,-500.0,0.00041917,30]
[402038443,1768488700293,-500.0,0.00041917,30]
[402038444,1768488700304,-500.0,0.00041917,30]
[402038445,1768488700313,-499.71481803,0.00041917,30]
[402038446,1768488700322,-500.0,0.00041917,30]
[402038447,1768488700332,-954.0,0.00041917,30]
[402038448,1768488700341,-500.0,0.00041917,30]
[402038449,1768488700351,-500.0,0.00041917,30]
[402038450,1768488700361,-500.0,0.00041917,30]
[402038451,1768488700371,-684.68,0.00041917,30]
[402038452,1768488700381,-593.4,0.00041917,30]
[402038453,1768488700391,-597.93,0.00041917,30]
[402038454,1768488700401,-500.0,0.00041917,30]
[402038455,1768488700411,-1179.76,0.00041917,2]
[402038456,1768488700421,-500.0,0.00041917,30]
[402038457,1768488700431,-502.46720928,0.00041917,30]
[402038458,1768488700442,-500.0,0.00041917,30]
[402038459,1768488700452,-500.0,0.00041917,30]
[402038460,1768488700463,-1026.24,0.00041917,30]
[402038461,1768488700472,-500.0,0.00041917,30]
[402038462,1768488700481,-666.66,0.00041917,30]
[402038463,1768488700490,-500.0,0.00041917,30]
[402038464,1768488700499,-500.0,0.00041917,30]
[402038465,1768488700509,-500.0,0.00041917,30]
[402038466,1768488700518,-1092.31,0.00041917,30]
[402038467,1768488700528,-1127.45,0.00041917,30]
[402038468,1768488700537,-500.0,0.00041917,30]
[402038469,1768488700546,-500.0,0.00041917,30]
[402038470,1768488700555,-500.0,0.00041917,30]
[402038471,1768488700565,-500.0,0.00041917,30]
[402038472,1768488700574,-1135.42,0.00041917,30]
[402038473,1768488700584,-506.7614077,0.00041917,30]
[402038474,1768488700593,-500.0,0.00041917,30]
[402038475,1768488700603,-500.0,0.00041917,30]
[402038476,1768488700613,-500.0,0.00041917,30]
[402038477,1768488700626,-757.15,0.00041917,30]
[402038478,1768488700635,-500.0,0.00041917,30]
[402038479,1768488700644,-615.00360134,0.00041917,30]
[402038480,1768488700653,-914.77,0.00041917,30]
[402038481,1768488700663,-500.0,0.00041917,30]
[402038482,1768488700672,-500.0,0.00041917,30]
[402038483,1768488700681,-500.0,0.00041917,30]
[402038484,1768488700691,-500.0,0.00041917,30]
[402038485,1768488700701,-2263.85,0.00041917,30]
[402038486,1768488700710,-1098.99,0.00041917,30]
[402038487,1768488700720,-545.42320635,0.00041917,30]
[402038488,1768488700730,-500.0,0.00041917,30]
[402038489,1768488700739,-500.0,0.00041917,30]
[402038490,1768488700749,-500.0,0.00041917,30]
[402038491,1768488700758,-1009.55,0.00041917,30]
[402038492,1768488700768,-2119.24,0.00041917,30]
[402038493,1768488700778,-1141.9,0.00041917,30]
[402038494,1768488700787,-509.57241163,0.00041917,30]
[402038495,1768488700797,-1232.33,0.00041917,30]
[402038496,1768488700815,-377.23615878,0.00041917,30]
[402038497,1768488700825,-500.0,0.00041917,30]
[402038498,1768488700835,-500.0,0.00041917,30]
[402038499,1768488700844,-500.0,0.00041917,30]
[402038500,1768488700853,-500.0,0.00041917,30]
[402038501,1768488700862,-500.0,0.00041917,30]
[402038502,1768488700872,-500.0,0.00041917,30]
[402038503,1768488700881,-1205.4,0.00041917,30]
[402038504,1768488700890,-592.99,0.00041917,30]
[402038505,1768488700899,-500.0,0.00041917,5]
[402038506,1768488700909,-1593.3,0.00041917,30]
[402038507,1768488700918,-1738.1,0.00041917,30]
[402038508,1768488700928,-500.0,0.00041917,30]
[402038509,1768488700938,-1723.61,0.00041917,30]
[402038510,1768488700947,-971.63,0.00041917,30]
[402038511,1768488700956,-596.06,0.00041917,30]
[402038512,1768488700965,-1560.59,0.00041917,30]
[402038513,1768488700974,-500.0,0.00041917,30]
[402038514,1768488700983,-664.77,0.00041917,30]
[402038515,1768488700993,-500.0,0.00041917,30]
[402038516,1768488701002,-587.71,0.00041917,30]
[402038517,1768488701013,-500.0,0.00041917,30]
[402038518,1768488701022,-500.0,0.00041917,30]
[402038519,1768488701032,-293.90844375,0.00041917,30]
[402038520,1768488701042,-507.32,0.00041917,30]
[402038521,1768488701051,-500.0,0.00041917,30]
[402038522,1768488701061,-1466.95,0.00041917,30]
[402038523,1768488701070,-500.0,0.00041917,30]
[402038524,1768488701079,-680.18,0.00041917,30]
[402038525,1768488701088,-500.0,0.00041917,30]
[402038526,1768488701097,-500.0,0.00041917,30]
[402038527,1768488701107,-702.55,0.00041917,30]
[402038528,1768488701116,-881.61,0.00041917,2]
[402038529,1768488701126,-521.31,0.00041917,30]
[402038530,1768488701135,-621.11,0.00041917,30]
[402038531,1768488701145,-500.0,0.00041917,30]
[402038532,1768488701154,-899.81,0.00041917,30]
[402038533,1768488701164,-500.0,0.00041917,30]
[402038534,1768488701173,-500.0,0.00041917,30]
[402038535,1768488701182,-500.0,0.00041917,30]
[402038536,1768488701192,-629.81,0.00041917,30]
[402038537,1768488701202,-500.0,0.00041917,30]
[402038538,1768488701212,-500.0,0.00041917,30]
[402038539,1768488701223,-500.0,0.00041917,30]
[402038540,1768488701232,-316.86145249,0.00041917,30]
[402038541,1768488701242,-1223.99,0.00041917,30]
[402038542,1768488701251,-1281.54,0.00041917,30]
[402038543,1768488701261,-442.33534508,0.00041917,30]
[402038544,1768488701271,-500.0,0.00041917,30]
[402038545,1768488701280,-500.0,0.00041917,30]
[402038546,1768488701291,-1301.65,0.00041917,30]
[402038547,1768488701302,-1871.85,0.00041917,30]
[402038548,1768488701312,-577.33,0.00041917,30]
[402038549,1768488701323,-626.3,0.00041917,30]
[402038550,1768488701333,-964.16,0.00041917,30]
[402038551,1768488701343,-913.36,0.00041917,30]
[402038552,1768488701352,-681.56,0.00041917,30]
[402038553,1768488701362,-412.42,0.00041917,30]
[402038554,1768488701372,-660.55,0.00041917,30]
[402038555,1768488701381,-555.07056549,0.00041917,30]
[402038556,1768488701391,-1052.19,0.00041917,30]
[402038557,1768488701401,-500.0,0.00041917,30]
[402038558,1768488701411,-500.0,0.00041917,30]
[402038559,1768488701420,-1114.32,0.00041917,30]
[402038560,1768488701430,-500.0,0.00041917,30]
[402038561,1768488701439,-267.44470608,0.00041917,30]
[402038562,1768488701449,-500.0,0.00041917,30]
[402038563,1768488701459,-1034.55,0.00041917,30]
[402038564,1768488701468,-500.0,0.00041917,30]
[402038565,1768488701477,-788.42,0.00041917,30]
[402038566,1768488701486,-500.0,0.00041917,30]
[402038567,1768488701496,-176.97905808,0.00041917,30]
[402038568,1768488701505,-666.1,0.00041917,30]
[402038569,1768488701515,-1181.41,0.00041917,30]
[402038570,1768488701525,-500.0,0.00041917,30]
[402038571,1768488701534,-707.23,0.00041917,30]
[402038572,1768488701544,-558.16,0.00041917,30]
[402038573,1768488701553,-1851.56,0.00041917,30]
[402038574,1768488701562,-742.69,0.00041917,30]
[402038575,1768488701571,-500.0,0.00041917,30]
[402038576,1768488701581,-644.5,0.00041917,30]
[402038577,1768488701590,-500.0,0.00041917,30]
[402038578,1768488701600,-500.0,0.00041917,30]
[402038579,1768488701610,-204.69200757,0.00041917,30]
[402038580,1768488701625,-631.67,0.00041917,30]
[402038581,1768488701634,-421.42265067,0.00041917,30]
[402038582,1768488701643,-500.0,0.00041917,30]
[402038583,1768488701652,-1708.14,0.00041917,30]
[402038584,1768488701662,-500.0,0.00041917,30]
[402038585,1768488701672,-1190.98,0.00041917,30]
[402038586,1768488701682,-500.0,0.00041917,30]
[402038587,1768488701692,-500.0,0.00041917,30]
[402038588,1768488701703,-694.24,0.00041917,30]
[402038589,1768488701712,-1292.43,0.00041917,30]
[402038590,1768488701723,-500.0,0.00041917,30]
[402038591,1768488701733,-1127.36,0.00041917,30]
[402038592,1768488701742,-583.85,0.00041917,30]
[402038593,1768488701752,-1574.7,0.00041917,30]
[402038594,1768488701761,-500.0,0.00041917,30]
[402038595,1768488701771,-500.0,0.00041917,30]
[402038596,1768488701780,-560.94567004,0.00041917,30]
[402038597,1768488701790,-1052.77,0.00041917,30]
[402038598,1768488701800,-536.84509092,0.00041917,30]
[402038599,1768488701809,-500.0,0.00041917,30]
[402038600,1768488701819,-500.0,0.00041917,30]
[402038601,1768488701830,-500.0,0.00041917,30]
[402038602,1768488701840,-500.0,0.00041917,30]
[402038603,1768488701850,-523.24,0.00041917,30]
[402038604,1768488701860,-500.0,0.00041917,30]
[402038605,1768488701871,-500.0,0.00041917,30]
[402038606,1768488701880,-514.94,0.00041917,30]
[402038607,1768488701890,-644.83,0.00041917,30]
[402038608,1768488701899,-500.0,0.00041917,30]
[402038609,1768488701908,-1748.59,0.00041917,30]
[402038610,1768488701917,-881.0,0.00041917,30]
[402038611,1768488701926,-1200.84,0.00041917,30]
[402038612,1768488701936,-500.0,0.00041917,30]
[402038613,1768488701946,-558.89,0.00041917,30]
[402038614,1768488701956,-500.0,0.00041917,30]
[402038615,1768488701965,-500.0,0.00041917,30]
[402038616,1768488701975,-500.0,0.00041917,30]
[402038617,1768488702174,-690.39,0.00041917,30]
[402038618,1768488702184,-500.0,0.00041917,30]
[402038619,1768488702193,-500.0,0.00041917,2]
[402038620,1768488702203,-1125.51,0.00041917,30]
[402038621,1768488702213,-500.0,0.00041917,30]
[402038622,1768488702222,-532.48,0.00041917,30]
[402038623,1768488702233,-555.65,0.00041917,30]
[402038624,1768488702243,-611.85,0.00041917,30]
[402038625,1768488702254,-1033.33,0.00041917,30]
[402038626,1768488702263,-500.0,0.00041917,30]
[402038627,1768488702272,-500.0,0.00041917,30]
[402038628,1768488702282,-500.0,0.00041917,30]
[402038629,1768488702292,-500.0,0.00041917,30]
[402038630,1768488702304,-500.0,0.00041917,30]
[402038631,1768488702314,-706.4,0.00041917,30]
[402038632,1768488702323,-500.0,0.00041917,30]
[402038633,1768488702334,-500.0,0.00041917,30]
[402038634,1768488702343,-500.0,0.00041917,30]
[402038635,1768488702353,-500.0,0.00041917,30]
[402038636,1768488702362,-500.0,0.00041917,30]
[402038637,1768488702372,-500.0,0.00041917,30]
[402038638,1768488702382,-1211.18,0.00041917,30]
[402038639,1768488702392,-1644.2,0.00041917,30]
[402038640,1768488702402,-1256.78,0.00041917,30]
[402038641,1768488702412,-500.0,0.00041917,30]
[402038642,1768488702422,-500.0,0.00041917,30]
[402038643,1768488702432,-1314.38,0.00041917,30]
[402038644,1768488702442,-500.0,0.00041917,30]
[402038645,1768488702451,-500.0,0.00041917,30]
[402038646,1768488702461,-1314.0,0.00041917,30]
[402038647,1768488702471,-796.29,0.00041917,30]
[402038648,1768488702480,-500.0,0.00041917,30]
[402038649,1768488702490,-1423.22,0.00041917,30]
[402038650,1768488702500,-500.0,0.00041917,30]
[402038651,1768488702509,-963.06,0.00041917,30]
[402038652,1768488702518,-500.0,0.00041917,30]
[402038653,1768488702527,-500.0,0.00041917,30]
[402038654,1768488702537,-503.05598055,0.00041917,30]
[402038655,1768488702546,-606.49,0.00041917,30]
[402038656,1768488702555,-650.13,0.00041917,30]
[402038657,1768488702564,-500.0,0.00041917,30]
[402038658,1768488702573,-621.15,0.00041917,30]
[402038659,1768488702582,-500.0,0.00041917,30]
[402038660,1768488702592,-1108.85,0.00041917,30]
[402038661,1768488702601,-500.0,0.00041917,30]
[402038662,1768488702611,-500.0,0.00041917,30]
[402038663,1768488702624,-500.0,0.00041917,30]
[402038664,1768488702637,-1563.9,0.00041917,30]
[402038665,1768488702647,-500.0,0.00041917,30]
[402038666,1768488702657,-982.86,0.00041917,30]
[402038667,1768488702667,-500.0,0.00041917,30]
[402038668,1768488702676,-724.81,0.00041917,30]
[402038669,1768488702686,-500.0,0.00041917,30]
[402038670,1768488702696,-500.0,0.00041917,30]
[402038671,1768488702706,-559.99,0.00041917,30]
[402038672,1768488702716,-782.73,0.00041917,30]
[402038673,1768488702725,-577.74818749,0.00041917,30]
[402038674,1768488702734,-854.93,0.00041917,30]
[402038675,1768488702744,-1121.87,0.00041917,30]
[402038676,1768488702753,-500.0,0.00041917,30]
[402038677,1768488702762,-500.0,0.00041917,30]
[402038678,1768488702771,-500.0,0.00041917,30]
[402038679,1768488702780,-1094.89,0.00041917,30]
[402038680,1768488702789,-500.0,0.00041917,30]
[402038681,1768488702799,-500.0,0.00041917,30]
[402038682,1768488702808,-781.46,0.00041917,30]
[402038683,1768488702818,-500.0,0.00041917,30]
[402038684,1768488702827,-500.0,0.00041917,30]
[402038685,1768488702836,-500.0,0.00041917,30]
[402038686,1768488702845,-500.0,0.00041917,30]
[402038687,1768488702854,-500.0,0.00041917,30]
[402038688,1768488702864,-628.1,0.00041917,30]
[402038689,1768488702875,-500.0,0.00041917,30]
[402038690,1768488702884,-500.0,0.00041917,30]
[402038691,1768488702894,-500.0,0.00041917,30]
[402038692,1768488702903,-975.85,0.00041917,30]
[402038693,1768488702913,-500.0,0.00041917,30]
[402038694,1768488702922,-1145.77,0.00041917,30]
[402038695,1768488702931,-950.97,0.00041917,30]
[402038696,1768488702941,-500.0,0.00041917,30]
[402038697,1768488702950,-1189.35,0.00041917,30]
[402038698,1768488702960,-500.0,0.00041917,30]
[402038699,1768488702969,-500.0,0.00041917,30]
[402038700,1768488702979,-520.37,0.00041917,30]
[402038701,1768488702988,-683.17,0.00041917,30]
[402038702,1768488702998,-500.0,0.00041917,30]
[402038703,1768488703008,-566.14,0.00041917,30]
[402038704,1768488703017,-500.0,0.00041917,30]
[402038705,1768488703027,-500.0,0.00041917,30]
[402038706,1768488703037,-1112.28,0.00041917,30]
[402038707,1768488703065,-500.0,0.00041917,30]
[402038708,1768488703075,-500.0,0.00041917,30]
[402038709,1768488703085,-503.69269412,0.00041917,30]
[402038710,1768488703094,-500.0,0.00041917,30]
[402038711,1768488703104,-500.0,0.00041917,30]
[402038712,1768488703113,-1869.81,0.00041917,30]
[402038713,1768488703124,-500.0,0.00041917,30]
[402038714,1768488703133,-500.0,0.00041917,30]
[402038715,1768488703144,-213.37905855,0.00041917,30]
[402038716,1768488703153,-1164.5,0.00041917,30]
[402038717,1768488703163,-1291.05,0.00041917,30]
[402038718,1768488703172,-1566.79,0.00041917,30]
[402038719,1768488703182,-500.0,0.00041917,30]
[402038720,1768488703191,-577.07,0.00041917,30]
[402038721,1768488703201,-475.81374823,0.00041917,30]
[402038722,1768488703210,-500.0,0.00041917,30]
[402038723,1768488703220,-1033.95,0.00041917,30]